Cogmind - Beta 16 @@@ ROGUE MODE // 2025.10.27 @ 09:12:07 Player: Miwa Result: Destroyed by 4D-Z8W(R) with Subdweller Shrapnel Launcher Performance ------------- Evolutions (0) 0 Regions Visited (2) 400 Robots Destroyed (24) 120 Value Destroyed (535) 535 Prototype IDs (0) 0 Alien Tech Used (0) 0 Bonus (0) 0 TOTAL SCORE: 1055 Bonus ------- None Cogmind --------- Core Integrity 0/250 Matter 255/300 Energy 82/125 System Corruption 0% Temperature Cool (0) Movement Flying (112) Ox1 Location -10/Subcaves Parts ------- > --- POWER (1) -------- Light Ion Engine > --- PROPULSION (2) --- VTOL Module VTOL Module > --- UTILITY (2) ------ Small Storage Unit Weight Redist. System > --- WEAPON (2) ------- Subdweller Shrapnel Launcher > --- INVENTORY (8) ---- Subdweller Power Source Large Storage Unit Sensor Array Signal Interpreter Targeting Computer Peak State ------------ > --- POWER ------------ Light Ion Engine > --- PROPULSION ------- VTOL Module VTOL Module > --- UTILITY ---------- Small Storage Unit Weight Redist. System > --- WEAPON ----------- Subdweller Shrapnel Launcher Flail > --- INVENTORY -------- Subdweller Power Source Large Storage Unit Sensor Array Signal Interpreter Targeting Computer [Rating: 12] Favorites ----------- Power Ion Engine Engine Ion Engine Propulsion Light Treads Treads Light Treads Flight Unit VTOL Module Utility Large Storage Unit Device Improved Terrain Scanner Storage Large Storage Unit Weapon Light Assault Rifle Energy Gun Medium Laser Ballistic Gun Light Assault Rifle Launcher Grenade Launcher Impact Weapon Flail Build | -11 -10 -10 ------- Run | Yrd Mat Sub Slots Evolved . | . . . Power . | . . . Propulsion . | . . . Utility . | . . . Weapon . | . . . Parts Attached 21 | 7 5 9 Power 4 | 1 1 2 Engine 4 | 1 1 2 Core . | . . . Reactor . | . . . Propulsion 7 | 2 . 5 Treads 3 | 2 . 1 Leg . | . . . Wheel . | . . . Hover . | . . . Flight 4 | . . 4 Utility 4 | 2 1 1 Device 2 | 1 . 1 Storage 2 | 1 1 . Processor . | . . . Hackware . | . . . Protection . | . . . Artifact . | . . . Weapon 6 | 2 3 1 Energy Gun 1 | 1 . . Energy Cannon . | . . . Ballistic Gun 2 | 1 1 . Ballistic Cannon . | . . . Launcher 2 | . 1 1 Special Weapon . | . . . Impact Weapon 1 | . 1 . Slashing Weapon . | . . . Piercing Weapon . | . . . Special Melee Weapon . | . . . Unidentified Prototypes . | . . . Parts Lost 12 | . 4 8 Power 3 | . 1 2 Propulsion 4 | . . 4 Utility 1 | . 1 . Weapon 4 | . 2 2 Highest Loss Streak 6 | . 3 6 To Critical Strikes . | . . . Average Backups 10 | 2 11 8 Power 1 | . 1 1 Propulsion 3 | 1 4 2 Utility 3 | . 3 4 Weapon 1 | . 1 . Tool/Special . | . . . Unused Backups 9 | . 5 4 Power 1 | . . 1 Propulsion 5 | . 5 . Utility 3 | . . 3 Weapon . | . . . Tool/Special . | . . . Average Slot Usage (%) 91 | . 94 75 Engine 13 | . 13 13 Treads 24 | . 28 11 Flight 3 | . . 16 Device 10 | . 11 6 Storage 13 | . 14 12 Ballistic Gun 18 | . 22 . Impact Weapon 4 | . 2 14 Peak Build Rating 12 | 9 11 12 Average Rating 9 | 5 9 8 On Entrance 5 | . 9 7 Avg Prop Armor Cover (%) . | . . . Naked Turns . | . . . Heaviest Build 29 | 14 29 28 Greatest Support 40 | 40 40 40 Greatest Overweight (x) 1 | . . 1 Average Overweight (x) . | . . . Largest Inventory Capacity 15 | 8 15 15 Average Capacity 13 | 7 14 10 Most Carried 15 | 4 15 13 Average Carried 10 | 2 11 8 Final Capacity 15 | 8 15 8 Final Carried 13 | 3 13 5 Class Distribution -------------------- 88% | Mutant 11% | Sprinter Dominant Class ---------------- Mutant | -10/Materials Sprinter | -10/Subcaves Resources | -11 -10 -10 ----------- Run | Yrd Mat Sub Matter Collected 587 | 277 245 65 Remotely . | . . . Salvage Created 840 | 110 581 149 Parts 50 | 5 41 4 Haulers Intercepted 1 | . 1 . Recyclers Shooed 1 | . 1 . Parts Field Recycled . | . . . Retrieved Matter . | . . . Parts Self-Destructed 2 | . . 2 Prevented . | . . . Parts Restored . | . . . Kills | -11 -10 -10 ------- Run | Yrd Mat Sub Combat Hostiles Destroyed 15 | . 12 3 Melee 2 | . . 2 Guns 10 | . 10 . Classes Destroyed 9 | 3 4 2 Worker 3 | 1 2 . Tunneler 1 | 1 . . Hauler 1 | . 1 . Recycler 2 | 1 1 . Watcher 2 | . 2 . Swarmer 3 | . 3 . Grunt 9 | . 9 . Artisan 1 | . . 1 Subdweller 3 | . . 3 Best Kill Streak 4 | 2 4 3 Combat Bots Only 3 | . 3 3 Max Kills in Single Turn 1 | 1 1 1 Gunslinging . | . . . Exploded . | . . . Melee 1 | . . 1 Uniques/NPCs Destroyed . | . . . Combat | -11 -10 -10 -------- Run | Yrd Mat Sub Hostile Shots Fired 114 | . 74 40 Missed 20 | . 9 11 Hits 94 | . 65 29 Projectile 94 | . 65 29 AOE 2 | . . 2 Critical Strikes 2 | . . 2 Damage Taken 1327 | . 690 637 Core 266 | . 54 212 Absorbed by Shields . | . . . Regen/Repaired (Parts) 49 | . 49 . Core Remaining (%) 100 | 100 . . Volleys Fired 58 | 7 50 1 Largest 2 | 2 2 1 Hottest 70 | 70 70 40 Shots Fired 114 | 14 99 1 Gun 112 | 14 98 . Cannon . | . . . Launcher 2 | . 1 1 Special . | . . . Kinetic 102 | 7 94 1 Thermal 11 | 7 4 . Explosive 1 | . 1 . Electromagnetic . | . . . Robot Hit Streak 12 | 4 12 . Robot Miss Streak 5 | 1 5 2 Penetration Max . | . . . Secondary Targets 1 | . 1 . Max Gunslinging Chain 1 | . 1 . Shots Hit Robots 77 | 9 60 8 Core Hits 35 | 5 28 2 Critical Kills . | . . . Critical Parts Destroyed 2 | . 1 1 Critical Strikes 2 | . 1 1 Smash 2 | . 1 1 Melee Attacks 19 | . 3 16 Impact 19 | . 3 16 Slashing . | . . . Piercing . | . . . Sneak Attacks 1 | . . 1 Combat Hostiles . | . . . Follow-up Attacks . | . . . Damage Inflicted 1098 | 89 736 273 Guns 736 | 89 647 . Cannons . | . . . Explosions . | . . . Melee 362 | . 89 273 Ramming . | . . . Kinetic 659 | 37 622 . Thermal 77 | 52 25 . Explosive . | . . . Electromagnetic . | . . . Impact 362 | . 89 273 Slashing . | . . . Piercing . | . . . Highest Corruption . | . . . Average Corruption . | . . . Corruption Purged . | . . . Corruption Blocked . | . . . Overload Shots . | . . . Overflow Damage 113 | . 54 59 Projectiles . | . . . Explosions . | . . . Melee 113 | . 54 59 Knockbacks 2 | . . 2 Impact 2 | . . 2 Kinetic . | . . . Secondary . | . . . Self-Inflicted Damage . | . . . Shots . | . . . Rammed . | . . . Targets Rammed . | . . . Kicked . | . . . Crushed . | . . . Highest Temperature 60 | 60 60 . Average Temperature 17 | 24 14 . Received Heat Transfer 426 | . 288 138 Siege Activations . | . . . Martial Activations . | . . . Shielding Activations . | . . . Robots Disrupted . | . . . Combat Hostiles . | . . . Robots Corrupted 3 | . 2 1 Combat Hostiles 3 | . 2 1 Parts Fried 6 | . 3 3 Impact Corruptions 7 | . 3 4 Robots Melted . | . . . Combat Hostiles . | . . . Parts Melted . | . . . Heat Transferred 222 | 148 74 . Parts Sabotaged . | . . . Parts Stolen . | . . . Parts Stripped . | . . . Power Chain Reactions . | . . . Alert | -11 -10 -10 ------- Run | Yrd Mat Sub Maximum Alert Level . | . . . Low Security (%) 100 | 100 100 . Level 1 . | . . . Level 2 . | . . . Level 3 . | . . . Level 4 . | . . . Level 5 . | . . . High Security . | . . . Max Security . | . . . Peak Influence 117 | 5 117 . Initial . | . . . Average 38 | 1 42 . Influence Increases 407 | 15 392 . Destroy 0b10 Robot/C 240 | . 240 . Destroy 0b10 Robot/NC 45 | 15 30 . Destroy Leader 56 | . 56 . Successful Hack 12 | . 12 . Disable Machine 15 | . 15 . Destroy Structure 9 | . 9 . Partial Spotted 15 | . 15 . Lose Combat Pursuer 15 | . 15 . Influence Decreases 407 | 15 347 45 Entered New Map 22 | . . 22 Time Decay 345 | 15 307 23 Lost Part 40 | . 40 . Squads Dispatched 3 | . 3 . Investigation 2 | . 2 . Extermination . | . . . Reinforcement 1 | . 1 . Assault . | . . . Garrison . | . . . Intercept . | . . . Searches Triggered . | . . . Construction Impeded . | . . . Haulers Reinforced . | . . . Active Scanning Responses . | . . . Cargo Convoy Interrupts . | . . . Stealth | -11 -10 -10 --------- Run | Yrd Mat Sub Distress Signals 1 | . 1 . Communications Jammed . | . . . Distress Signals . | . . . Times Spotted 28 | . 22 6 Peak Tracking Total 4 | . 4 3 Tactical Retreats 1 | . 1 . Traps | -11 -10 -10 ------- Run | Yrd Mat Sub Traps Triggered 2 | . 2 . Indirectly . | . . . Trap Hack Attempts . | . . . Triggered . | . . . Disarmed . | . . . Reprogrammed . | . . . Reused . | . . . Traps Extracted . | . . . Installed . | . . . Triggered . | . . . Machines | -11 -10 -10 ---------- Run | Yrd Mat Sub Machines Disabled 1 | . 1 . Max in Single Turn 1 | . 1 . Machines Repaired . | . . . Machines Dismantled . | . . . Machines Sabotaged . | . . . Overloaded Fab Kills . | . . . Hacking | -11 -10 -10 --------- Run | Yrd Mat Sub Machines Accessed 6 | . 6 . Terminals 5 | . 5 . Fabricators . | . . . Repair Stations 1 | . 1 . Recycling Units . | . . . Scanalyzers . | . . . Garrison Access . | . . . Total Hacks 13 | . 13 . Successful 8 | . 8 . Failed 5 | . 5 . Catastrophic 1 | . 1 . Database Lockouts . | . . . Manual 8 | . 8 . Terminals 9 | . 9 . Fabricators . | . . . Repair Stations 4 | . 4 . Recycling Units . | . . . Scanalyzers . | . . . Garrison Access . | . . . Terminal Hacks 1 | . 1 . Branch Access Points 1 | . 1 . Fabricator Hacks . | . . . Repair Station Hacks 3 | . 3 . Scan Component 2 | . 2 . Repair 1 | . 1 . Recycling Unit Hacks . | . . . Scanalyzer . | . . . Garrison Access Hacks . | . . . Unauthorized Hacks 4 | . 4 . Terminals 4 | . 4 . Botnet 4 | . 4 . Fabricators . | . . . Repair Stations . | . . . Recycling Units . | . . . Scanalyzers . | . . . Garrison Access . | . . . Data Cores Recovered . | . . . Used . | . . . Hacking Detections 4 | . 4 . Full Trace Events . | . . . Feedback Events . | . . . Feedback Blocked . | . . . Robot Schematics Acquired . | . . . Robots Built . | . . . Authchips . | . . . Time . | . . . Total Robot Build Rating . | . . . Part Schematics Acquired . | . . . Parts Built . | . . . Authchips . | . . . Time . | . . . Total Part Build Rating . | . . . Part Studies Acquired . | . . . Parts Repaired 1 | . 1 . Time 26 | . 26 . Parts Recycled . | . . . Recycled Matter . | . . . Retrieved Matter . | . . . Retrieved Components . | . . . Parts Scanalyzed . | . . . Part Schematics Acquired . | . . . Parts Damaged . | . . . Bothacking | -11 -10 -10 ------------ Run | Yrd Mat Sub Used RIF Installer . | . . . Robots Hacked . | . . . Non-combat . | . . . Combat . | . . . Robot Hacks Applied . | . . . Relay Couplers Released . | . . . Fabnet Peak Effective % . | . . . Robots Rewired . | . . . Allies Hacked . | . . . Hacks Repelled . | . . . Allies | -11 -10 -10 -------- Run | Yrd Mat Sub Total Allies . | . . . Largest Group . | . . . Highest-Rated Group . | . . . Highest-Rated Ally . | . . . Total Orders . | . . . Ally Attacks . | . . . Total Damage . | . . . Kills . | . . . Allies Corrupted . | . . . Allies Melted . | . . . Intel | -11 -10 -10 ------- Run | Yrd Mat Sub Active Infowar (turns) 947 | 36 911 . Terrain 947 | 36 911 . Robot Analysis Total . | . . . Derelict Logs Recovered . | . . . Drone Launches . | . . . Drone Recoveries . | . . . Exploration | -11 -10 -10 ------------- Run | Yrd Mat Sub Turns Passed 1478 | 124 1099 255 Spaces Moved 973 | 59 551 363 Core 5 | 5 . . Treads 664 | 54 551 59 Legs . | . . . Wheels . | . . . Hover . | . . . Flight 304 | . . 304 Fastest Speed 32 | 50 160 32 Average Speed 119 | 150 160 53 Slowest Speed 240 | 160 160 240 Overloaded Moves . | . . . Propulsion Burnouts . | . . . Robots Hopped . | . . . Potential Cave-ins . | . . . Cave-ins Triggered . | . . . Exploration Rate (%) 34 | 6 63 34 Regions Visited 2 Branch Regions 1 Pre-discovered Areas . | . . . Known Exits Taken . | . . . Unknown Exits Taken 2 | 1 1 . Scrap Searched . | . . . Spaces Dug . | . . . Terrain Destroyed 34 | . 8 26 Melee . | . . . Projectile . | . . . AOE 34 | . 8 26 Terrain Rammed . | . . . Walls Destroyed . | . . . Machines Disabled . | . . . Actions | -11 -10 -10 --------- Run | Yrd Mat Sub Total 1159 | 82 676 401 Wait 41 | . 41 . Move 971 | 58 550 363 Hop . | . . . Pick Up 35 | 10 19 6 Fast Attach . | . . . Attach 22 | 7 3 12 Detach 1 | . . 1 Swap 4 | . 4 . Drop 8 | . 6 2 Fire 58 | 7 50 1 Melee 19 | . 3 16 Ram . | . . . Kick . | . . . Crush . | . . . Escape Stasis . | . . . Rewire . | . . . Trap . | . . . Miscellaneous . | . . . Route ------- -11/Scrapyard -10/Materials (discovered 4 exits: [*Mat] / *Min x2 / [*Sub]) -10/Subcaves History --------- Turn | Location | Event 4 | -11/Scrapyard | Discovered new exit (range 15) 125 | -11/Scrapyard | Entered Materials 310 | -10/Materials | Build established: Mutant 368 | -10/Materials | Discovered new exit (range 7) 603 | -10/Materials | Identified exit to Mines 956 | -10/Materials | Repaired Ion Engine 1084 | -10/Materials | Lost 3 parts (1u2w) 1203 | -10/Materials | Discovered new exit (range 11) 1224 | -10/Materials | Entered Subcaves 1327 | -10/Subcaves | Core integrity fell below 50% 1340 | -10/Subcaves | Core integrity fell below 20% 1368 | -10/Subcaves | Lost 6 parts (2p3n1w) 1437 | -10/Subcaves | Ambushed by Subdwellers from Twisted Machinery 1477 | -10/Subcaves | Shifting Twisted Machinery released Battle Cannon 1478 | -10/Subcaves | Shifting Twisted Machinery released Scrap Shield 1479 | -10/Subcaves | Destroyed by 4D-Z8W(R) with Subdweller Shrapnel Launcher Last Messages --------------- 01361_ WM-U4P(u) builds Twisted Machinery. 01364_ WM-U4P(u) tweaks Twisted Machinery. 01366_ Sneak attack on WM-U4P(u). 01390_ WM-U4P(u) suffers critical hit (Smash). 01390_ Destroyed Wheel. 01390_ Destroyed Multitool. 01390_ WM-U4P(u) system corrupted by crushing effect. 01390_ WM-U4P(u) cries out in pain. 01390_ WM-U4P(u) destroyed. 01437_ GV-20F(R) emerges from the Twisted Machinery. 01471_ Acquired Sub. Shrapnel Launcher. 01472_ VTOL Module destroyed. Battle Cannon falls loose from the Twisted Machinery. 01477_ 4D-Z8W(R): "WEHOME!" 01477_ Flail destroyed. Scrap Shield falls loose from the Twisted Machinery. Map ----- +----------------------------------------------------+ | ??????????????????????????????????????????? | | ??????????????????????????????????????????? | | ??????????????????????????????????????????? | | ??????????????????????????????????????????? | | ??????????????????????????????????????????? | | ??????????????????????????????????????????? | | ??????????????????????????????????????????? | | ??????????????????????????????????????????? | | ??????????????????????????????????????????? | | ??????????????????????????????????????????? | | ?????????????????###??????????????????????? | | ????????????????? ;;??????????????????????? | | ????????????????;;; ????????????????? ??? | | ????????????????; ????????????????? #?? | | ???????????????? ???????????????# ??? | | ????????????????;; ??????????????? ??? | | ????????????????#; ???????????????" ??? | | ????????????????# ;???????????????#" ??? | | ????????????#####< #??????? ???????# #??? | | ????????????? # < #????? ??????# ##?? | | ?????????????? #???#" ?????# ##? | | ??????????????? #?##"" #????# ## | | ???????????????# ### """] #????# # | | ????????????## #;R ;;; ! "" ####? ^ | | ????????????? ; " ##""### | | ????????????????#;@ ""#?# # # | | ?????????????< ; ;;; #### | | ??????????<<<< ##; ;; ###; ;;s | | ??????????< ???# ####?#" ## | | ?????????##?????# ##### ! ##### | | ????????????????## ##= %& ##??## | | ??????????????#### %* #???# | | ??????????????# "# ###???## | | ??????????????# "###?????# | | ??????????????# ## #???????## | | ??????????????# #?# #??????### | | ??????????????## ??# ## #?????# | | ???????????????##?# ## #???### | | ??????????????????## ## ##??## | | ???????????????????## ### #######???# | | ????????????????????###?# ?????????# | | ??????????????????????## ????????## | | ?????????????????????## ?????????## | | ????????????????????## ??????#### | | ????????????????????# ???## # | | ???????????????????# ## # | | ????????????????????????### # | | ??????????????????????????## ### ## | | ???????????????????????????## #######?###? | | ????????????????????????????##????????????? | +----------------------------------------------------+ Best States ------------- Heat Dissipation 25 Energy Generation 10 Energy Capacity 250 Matter Stores 300 Matter Capacity 300 Sight Range 16 Terrain Scan Range 16 Terrain Scan Density 10 Additional Mass Support 6 Evasion (%) 63 Recoil Reduction 2 Item Schematics ----------------- None Robot Schematics ------------------ None Fabricated ------------ Nothing Repaired ---------- Ion Engine | 18% | -10/Materials Studied --------- None Alien Tech Used ----------------- None Achievements -------------- None Challenges ------------ None Game ------ Seed DispersionCarbideScrap Manual? 0 Play Time 00:12:55 Cumulative 52.2 hours Start 2025.10.27 @ 08:58:57 End 2025.10.27 @ 09:12:07 Sessions 1 Manual Loads 0 Difficulty Rogue Special Mode None Game No. 65 Rogue 65 Adventurer 0 Explorer 0 Win Type - Total 0 Types 0/0/0/0/0/0/0/0/0/0 Lore% 18 Gallery% 31 Achievement% 21 Wizard Run 0 Options --------- Layout 1 ASCII 0 Keyboard 0 Movement Mouse Keybinds 0 Fullscreen 2 Font 32/SmallcapsGlow Map View 50x35 Zoom Use 0% Tactical HUD 1 Map Filters NONE Filters NONE Steam 1 RUN: 13b313b1-aeec-425b-86f6-410772cdc942